[Event "*** Titled Tuesday Blitz"]
[Site "Chess.com"]
[Date "2020.11.03"]
[Round "6"]
[White "Titus369"]
[Black "nitpicker"]
[Result "1-0"]
[WhiteElo "2527"]
[BlackElo "2122"]
[TimeControl "180+1"]
[EndTime "11:10:47 PST"]
[Termination "Titus369 won on time"]

1. e4 {[%clk 0:03:00.9]} 1... d5 {[%clk 0:02:56.5]} 2. exd5 {[%clk 0:02:52.1]}
2... Qxd5 {[%clk 0:02:56.3]} 3. Nc3 {[%clk 0:02:52.4]} 3... Qd8 {[%clk
0:02:56.2]} 4. Nf3 {[%clk 0:02:46.8]} 4... Nf6 {[%clk 0:02:53.4]} 5. Bc4 {[%clk
0:02:44.1]} 5... a6 {[%clk 0:02:42.9]} 6. a4 {[%clk 0:02:07.2]} 6... Bf5 {[%clk
0:02:42.4]} 7. d4 {[%clk 0:02:02.9]} 7... e6 {[%clk 0:02:41]} 8. h3 {[%clk
0:01:58.8]} 8... Nc6 {[%clk 0:02:40.6]} 9. Be3 {[%clk 0:01:53.2]} 9... Nb4
{[%clk 0:02:40.3]} 10. Bb3 {[%clk 0:01:53.1]} 10... c6 {[%clk 0:02:36.5]} 11.
Ne5 {[%clk 0:01:49.8]} 11... Bd6 {[%clk 0:02:25.8]} 12. g4 {[%clk 0:01:43.7]}
12... Bg6 {[%clk 0:02:24.5]} 13. Qe2 {[%clk 0:01:36.9]} 13... Qc7 {[%clk
0:02:18.3]} 14. f4 {[%clk 0:01:35.6]} 14... Nbd5 {[%clk 0:02:16.7]} 15. Bd2
{[%clk 0:01:33]} 15... O-O-O {[%clk 0:02:10.4]} 16. O-O-O {[%clk 0:01:23.5]}
16... Nxc3 {[%clk 0:01:58.1]} 17. Bxc3 {[%clk 0:01:22.7]} 17... Be4 {[%clk
0:01:57.8]} 18. Rhf1 {[%clk 0:01:17.3]} 18... Bd5 {[%clk 0:01:57.8]} 19. Bxd5
{[%clk 0:01:07.4]} 19... cxd5 {[%clk 0:01:55.6]} 20. Be1 {[%clk 0:01:05]} 20...
Kb8 {[%clk 0:01:54]} 21. Rf3 {[%clk 0:01:04.2]} 21... Ne4 {[%clk 0:01:52.4]} 22.
Rb3 {[%clk 0:01:03.5]} 22... f6 {[%clk 0:01:50.8]} 23. Ba5 {[%clk 0:01:03.2]}
23... Qc8 {[%clk 0:01:00.9]} 24. Nf7 {[%clk 0:00:55.1]} 24... Bxf4+ {[%clk
0:00:58.4]} 25. Kb1 {[%clk 0:00:54.5]} 25... Qc4 {[%clk 0:00:42.5]} 26. Qf3
{[%clk 0:00:29.1]} 26... Bc7 {[%clk 0:00:39.4]} 27. Bxc7+ {[%clk 0:00:25.5]}
27... Qxc7 {[%clk 0:00:38.9]} 28. Nxh8 {[%clk 0:00:25.7]} 28... Rxh8 {[%clk
0:00:38.7]} 29. Qe2 {[%clk 0:00:21.6]} 29... Ka7 {[%clk 0:00:36.6]} 30. Rc1
{[%clk 0:00:19.9]} 30... g5 {[%clk 0:00:35]} 31. Ka2 {[%clk 0:00:19.3]} 31... h5
{[%clk 0:00:34.4]} 32. c4 {[%clk 0:00:19.3]} 32... Qd7 {[%clk 0:00:32.3]} 33.
Ra3 {[%clk 0:00:17.1]} 33... hxg4 {[%clk 0:00:31.4]} 34. hxg4 {[%clk 0:00:16.9]}
34... Rh4 {[%clk 0:00:30.1]} 35. c5 {[%clk 0:00:17.1]} 35... Qc6 {[%clk
0:00:29]} 36. b4 {[%clk 0:00:17.4]} 36... Kb8 {[%clk 0:00:28.2]} 37. b5 {[%clk
0:00:17.4]} 37... Qc8 {[%clk 0:00:26.1]} 38. c6 {[%clk 0:00:17.1]} 38... Ka7
{[%clk 0:00:22]} 39. Rc2 {[%clk 0:00:16.3]} 39... Rh1 {[%clk 0:00:20.1]} 40. Rb3
{[%clk 0:00:15.8]} 40... b6 {[%clk 0:00:19.2]} 41. c7 {[%clk 0:00:14.9]} 41...
Nd6 {[%clk 0:00:17.9]} 42. bxa6 {[%clk 0:00:15.1]} 42... Nc4 {[%clk 0:00:17.9]}
43. Rbc3 {[%clk 0:00:13.5]} 43... Qxa6 {[%clk 0:00:17.1]} 44. Rxc4 {[%clk
0:00:13.3]} 44... dxc4 {[%clk 0:00:16.4]} 45. Qxc4 {[%clk 0:00:14]} 45... Qc8
{[%clk 0:00:16.5]} 46. Qc6 {[%clk 0:00:13.1]} 46... Rh4 {[%clk 0:00:14.5]} 47.
Rb2 {[%clk 0:00:13]} 47... Rxg4 {[%clk 0:00:05.5]} 48. Qxb6+ {[%clk 0:00:12.6]}
48... Ka8 {[%clk 0:00:05.7]} 49. Qa5+ {[%clk 0:00:10.3]} 49... Qa6 {[%clk
0:00:06.6]} 50. c8=Q+ {[%clk 0:00:10.6]} 1-0

[Event "*** Titled Tuesday Blitz"]
[Site "Chess.com"]
[Date "2020.11.03"]
[Round "6"]
[White "Sueetin"]
[Black "MasterKroket"]
[Result "1/2-1/2"]
[WhiteElo "2310"]
[BlackElo "2416"]
[TimeControl "180+1"]
[EndTime "11:10:48 PST"]
[Termination "Game drawn - insufficient material"]

1. d4 {[%clk 0:03:00.9]} 1... Nf6 {[%clk 0:02:57]} 2. c4 {[%clk 0:03:01.4]} 2...
e6 {[%clk 0:02:57]} 3. Nc3 {[%clk 0:03:01.9]} 3... Bb4 {[%clk 0:02:57.1]} 4. Qc2
{[%clk 0:03:02.5]} 4... d5 {[%clk 0:02:56.5]} 5. a3 {[%clk 0:02:53.5]} 5...
Bxc3+ {[%clk 0:02:56.1]} 6. Qxc3 {[%clk 0:02:54.4]} 6... O-O {[%clk 0:02:53.2]}
7. Bg5 {[%clk 0:02:52.8]} 7... dxc4 {[%clk 0:02:53.6]} 8. Qxc4 {[%clk
0:02:52.9]} 8... Qd5 {[%clk 0:02:50.2]} 9. Qxd5 {[%clk 0:02:49]} 9... Nxd5
{[%clk 0:02:50.3]} 10. e4 {[%clk 0:02:45.6]} 10... Nb6 {[%clk 0:02:49.4]} 11.
Rc1 {[%clk 0:02:44.1]} 11... Nc6 {[%clk 0:02:47.4]} 12. Be3 {[%clk 0:02:41]}
12... Rd8 {[%clk 0:02:44.5]} 13. Nf3 {[%clk 0:02:38.1]} 13... Bd7 {[%clk
0:02:21.9]} 14. Be2 {[%clk 0:02:36.9]} 14... Rac8 {[%clk 0:02:21.1]} 15. O-O
{[%clk 0:02:33.6]} 15... Be8 {[%clk 0:02:21.3]} 16. Rc2 {[%clk 0:02:23]} 16...
f6 {[%clk 0:02:19.9]} 17. h3 {[%clk 0:02:18.4]} 17... Bg6 {[%clk 0:02:19.6]} 18.
Bd3 {[%clk 0:02:11.4]} 18... e5 {[%clk 0:02:14.8]} 19. d5 {[%clk 0:02:05.9]}
19... Nxd5 {[%clk 0:02:13.2]} 20. Bc4 {[%clk 0:01:29.6]} 20... Bxe4 {[%clk
0:02:11.9]} 21. Rd2 {[%clk 0:01:28.1]} 21... Kh8 {[%clk 0:02:03.6]} 22. Bxd5
{[%clk 0:01:11.5]} 22... Rxd5 {[%clk 0:02:02.9]} 23. Rxd5 {[%clk 0:01:11.2]}
23... Bxd5 {[%clk 0:02:03.8]} 24. Rd1 {[%clk 0:01:11.2]} 24... Bxf3 {[%clk
0:02:03.2]} 25. gxf3 {[%clk 0:01:11.2]} 25... Rd8 {[%clk 0:02:03.6]} 26. Rxd8+
{[%clk 0:01:10.2]} 26... Nxd8 {[%clk 0:02:04]} 27. Bxa7 {[%clk 0:01:09.4]} 27...
b6 {[%clk 0:02:04.4]} 28. Bb8 {[%clk 0:01:09.5]} 28... Ne6 {[%clk 0:02:04.4]}
29. a4 {[%clk 0:01:08.3]} 29... Kg8 {[%clk 0:02:04.7]} 30. b4 {[%clk 0:01:08.2]}
30... Kf7 {[%clk 0:02:02.6]} 31. a5 {[%clk 0:01:07.8]} 31... bxa5 {[%clk
0:01:59.3]} 32. bxa5 {[%clk 0:01:08.7]} 32... Nc5 {[%clk 0:01:54.8]} 33. Bxc7
{[%clk 0:01:07.6]} 33... Ke6 {[%clk 0:01:54.3]} 34. f4 {[%clk 0:01:04.4]} 34...
e4 {[%clk 0:01:51.8]} 35. Kf1 {[%clk 0:01:02]} 35... Kd5 {[%clk 0:01:50.6]} 36.
Ke2 {[%clk 0:01:01.5]} 36... f5 {[%clk 0:01:49.1]} 37. Be5 {[%clk 0:00:59.3]}
37... g6 {[%clk 0:01:48.1]} 38. Kf1 {[%clk 0:00:57.4]} 38... Kc4 {[%clk
0:01:43.9]} 39. Kg2 {[%clk 0:00:56]} 39... Kb5 {[%clk 0:01:42.1]} 40. Bc7 {[%clk
0:00:55.2]} 40... Nb3 {[%clk 0:01:40.6]} 41. Kg3 {[%clk 0:00:52.2]} 41... Nxa5
{[%clk 0:01:24.5]} 42. Kh4 {[%clk 0:00:41.8]} 42... Nb3 {[%clk 0:01:23.8]} 43.
Be5 {[%clk 0:00:29.8]} 43... Kc4 {[%clk 0:01:21.6]} 44. Kg5 {[%clk 0:00:28.8]}
44... Nc1 {[%clk 0:01:21.5]} 45. Bb8 {[%clk 0:00:21.7]} 45... Nd3 {[%clk
0:01:16.3]} 46. Ba7 {[%clk 0:00:21.7]} 46... Kc3 {[%clk 0:01:08.3]} 47. h4
{[%clk 0:00:21.8]} 47... Kd2 {[%clk 0:01:07.9]} 48. h5 {[%clk 0:00:22.1]} 48...
Nxf2 {[%clk 0:01:05.7]} 49. hxg6 {[%clk 0:00:19.8]} 49... hxg6 {[%clk
0:01:05.6]} 50. Kxg6 {[%clk 0:00:19.6]} 50... Nh3 {[%clk 0:00:30.2]} 51. Kxf5
{[%clk 0:00:18.7]} 51... Kd3 {[%clk 0:00:30.6]} 52. Ke5 {[%clk 0:00:12.7]} 52...
Nxf4 {[%clk 0:00:24.2]} 53. Kxf4 {[%clk 0:00:11.1]} 53... e3 {[%clk 0:00:25.1]}
54. Bxe3 {[%clk 0:00:10.5]} 1/2-1/2

[Event "*** Titled Tuesday Blitz"]
[Site "Chess.com"]
[Date "2020.11.03"]
[Round "6"]
[White "Man-Chuk"]
[Black "Aygehovit1992"]
[Result "0-1"]
[WhiteElo "2829"]
[BlackElo "2644"]
[TimeControl "180+1"]
[EndTime "11:10:49 PST"]
[Termination "Aygehovit1992 won by resignation"]

1. Nf3 {[%clk 0:03:00.9]} 1... Nf6 {[%clk 0:02:51.2]} 2. c4 {[%clk 0:03:01.5]}
2... g6 {[%clk 0:02:51.2]} 3. g3 {[%clk 0:03:00.8]} 3... Bg7 {[%clk 0:02:52.1]}
4. Bg2 {[%clk 0:03:01.4]} 4... O-O {[%clk 0:02:53]} 5. O-O {[%clk 0:03:01.5]}
5... d6 {[%clk 0:02:53.9]} 6. Nc3 {[%clk 0:03:01.1]} 6... c6 {[%clk 0:02:54.8]}
7. d3 {[%clk 0:02:58]} 7... a5 {[%clk 0:02:54.2]} 8. Rb1 {[%clk 0:02:57.9]} 8...
Na6 {[%clk 0:02:53.9]} 9. a3 {[%clk 0:02:58.1]} 9... Bg4 {[%clk 0:02:53.3]} 10.
b4 {[%clk 0:02:55.2]} 10... axb4 {[%clk 0:02:52.5]} 11. axb4 {[%clk 0:02:55.9]}
11... Qd7 {[%clk 0:02:53.1]} 12. b5 {[%clk 0:02:51.7]} 12... Nc5 {[%clk
0:02:52]} 13. bxc6 {[%clk 0:02:42.4]} 13... bxc6 {[%clk 0:02:52.9]} 14. Be3
{[%clk 0:02:31.5]} 14... Ra5 {[%clk 0:01:47.4]} 15. Nd4 {[%clk 0:02:28.5]} 15...
Rc8 {[%clk 0:01:35.5]} 16. Rb6 {[%clk 0:02:12.5]} 16... Bh3 {[%clk 0:01:34.5]}
17. Rxc6 {[%clk 0:01:44.7]} 17... Rca8 {[%clk 0:00:56.6]} 18. Nd5 {[%clk
0:01:14.2]} 18... Bxg2 {[%clk 0:00:54.5]} 19. Kxg2 {[%clk 0:01:13.7]} 19... Ne6
{[%clk 0:00:19.8]} 20. Rb6 {[%clk 0:00:22.7]} 20... Nxd5 {[%clk 0:00:18.1]} 21.
Nxe6 {[%clk 0:00:21.2]} 21... Nxe3+ {[%clk 0:00:18.3]} 22. fxe3 {[%clk
0:00:21.3]} 22... Qxe6 {[%clk 0:00:18.6]} 23. e4 {[%clk 0:00:19.9]} 23... Bd4
{[%clk 0:00:18.2]} 24. Rb5 {[%clk 0:00:18.9]} 24... Ra1 {[%clk 0:00:17.8]} 25.
Rb1 {[%clk 0:00:15.8]} 25... Rxb1 {[%clk 0:00:16.8]} 26. Qxb1 {[%clk 0:00:16.7]}
26... Kg7 {[%clk 0:00:15.7]} 27. Qb7 {[%clk 0:00:13.7]} 27... Ra2 {[%clk
0:00:14.9]} 28. Qd5 {[%clk 0:00:06.2]} 28... Rxe2+ {[%clk 0:00:14.3]} 29. Kf3
{[%clk 0:00:06.8]} 29... Re3+ {[%clk 0:00:14.6]} 30. Kg2 {[%clk 0:00:05.5]}
30... Qxd5 {[%clk 0:00:14.9]} 31. exd5 {[%clk 0:00:06]} 31... Rxd3 {[%clk
0:00:15.2]} 32. Re1 {[%clk 0:00:06.9]} 32... Rd2+ {[%clk 0:00:15.1]} 33. Kh3
{[%clk 0:00:07]} 33... Be5 {[%clk 0:00:13.6]} 34. c5 {[%clk 0:00:06.8]} 34...
Rxd5 {[%clk 0:00:13.5]} 35. cxd6 {[%clk 0:00:07.5]} 35... exd6 {[%clk
0:00:13.6]} 36. Kg4 {[%clk 0:00:07.7]} 36... h5+ {[%clk 0:00:13.6]} 37. Kf3
{[%clk 0:00:07.3]} 37... f5 {[%clk 0:00:12.9]} 38. Re3 {[%clk 0:00:05.5]} 38...
Kf6 {[%clk 0:00:13.2]} 39. h3 {[%clk 0:00:05.4]} 39... Rc5 {[%clk 0:00:13.7]}
40. Kg2 {[%clk 0:00:03.8]} 40... Rc3 {[%clk 0:00:13.6]} 41. Re2 {[%clk
0:00:04.5]} 41... Rxg3+ {[%clk 0:00:13.6]} 42. Kh1 {[%clk 0:00:05.2]} 42...
Rxh3+ {[%clk 0:00:13.6]} 43. Kg1 {[%clk 0:00:06]} 43... Rb3 {[%clk 0:00:13.1]}
44. Kf2 {[%clk 0:00:06.7]} 44... Rb2 {[%clk 0:00:13.3]} 0-1

[Event "*** Titled Tuesday Blitz"]
[Site "Chess.com"]
[Date "2020.11.03"]
[Round "6"]
[White "juancruzarias"]
[Black "kflorian98"]
[Result "0-1"]
[WhiteElo "2555"]
[BlackElo "2759"]
[TimeControl "180+1"]
[EndTime "11:10:50 PST"]
[Termination "kflorian98 won by resignation"]

1. e4 {[%clk 0:03:00.9]} 1... c6 {[%clk 0:02:58.9]} 2. d4 {[%clk 0:02:59.4]}
2... d5 {[%clk 0:02:59]} 3. exd5 {[%clk 0:03:00.3]} 3... cxd5 {[%clk 0:02:59.6]}
4. Bd3 {[%clk 0:03:01]} 4... Nf6 {[%clk 0:02:58.9]} 5. c3 {[%clk 0:03:00.7]}
5... Bg4 {[%clk 0:02:58.2]} 6. Qb3 {[%clk 0:02:59.8]} 6... Qc8 {[%clk
0:02:57.5]} 7. Bf4 {[%clk 0:02:58.8]} 7... Nc6 {[%clk 0:02:54.3]} 8. Nd2 {[%clk
0:02:59.1]} 8... Bh5 {[%clk 0:02:51.7]} 9. Ngf3 {[%clk 0:02:59.2]} 9... Bg6
{[%clk 0:02:48.3]} 10. Bxg6 {[%clk 0:02:58.7]} 10... hxg6 {[%clk 0:02:49.2]} 11.
O-O {[%clk 0:02:59.2]} 11... e6 {[%clk 0:02:45.9]} 12. Rae1 {[%clk 0:02:51.5]}
12... Be7 {[%clk 0:02:42.3]} 13. Ne5 {[%clk 0:02:51.3]} 13... Nxe5 {[%clk
0:02:40.8]} 14. Bxe5 {[%clk 0:02:52.2]} 14... Ng4 {[%clk 0:02:35.6]} 15. Bg3
{[%clk 0:02:51.2]} 15... Nh6 {[%clk 0:02:33.6]} 16. Nf3 {[%clk 0:02:35.3]} 16...
f6 {[%clk 0:02:25.9]} 17. Re2 {[%clk 0:02:23]} 17... Kf7 {[%clk 0:02:10.5]} 18.
Rfe1 {[%clk 0:02:23.4]} 18... b6 {[%clk 0:02:08.8]} 19. Qb5 {[%clk 0:02:08.9]}
19... Rd8 {[%clk 0:01:54.3]} 20. Bf4 {[%clk 0:02:02.4]} 20... g5 {[%clk
0:01:51.4]} 21. Bd2 {[%clk 0:01:49.1]} 21... Rd6 {[%clk 0:01:43.2]} 22. h3
{[%clk 0:01:39.9]} 22... Bd8 {[%clk 0:00:57.5]} 23. Bc1 {[%clk 0:01:37.2]} 23...
Qc6 {[%clk 0:00:42.8]} 24. Qxc6 {[%clk 0:01:36.6]} 24... Rxc6 {[%clk 0:00:43.7]}
25. Bxg5 {[%clk 0:01:37.1]} 25... Nf5 {[%clk 0:00:40.1]} 26. g4 {[%clk
0:01:33.3]} 26... Ne7 {[%clk 0:00:33.3]} 27. Bd2 {[%clk 0:01:26.1]} 27... b5
{[%clk 0:00:33.5]} 28. Kg2 {[%clk 0:01:26.2]} 28... a5 {[%clk 0:00:33.8]} 29.
Rf1 {[%clk 0:01:21.5]} 29... Rb8 {[%clk 0:00:33.9]} 30. Ne1 {[%clk 0:01:21.9]}
30... b4 {[%clk 0:00:32.4]} 31. Nd3 {[%clk 0:01:22.4]} 31... bxc3 {[%clk
0:00:32.4]} 32. Bxc3 {[%clk 0:01:23.3]} 32... Nc8 {[%clk 0:00:32.4]} 33. f4
{[%clk 0:01:16.9]} 33... Nd6 {[%clk 0:00:31.7]} 34. Nc5 {[%clk 0:01:09.3]} 34...
Nb5 {[%clk 0:00:31.9]} 35. f5 {[%clk 0:01:08.2]} 35... e5 {[%clk 0:00:30.5]} 36.
Ne6 {[%clk 0:01:07.7]} 36... e4 {[%clk 0:00:29.2]} 37. Rc1 {[%clk 0:01:00.1]}
37... a4 {[%clk 0:00:27.8]} 38. a3 {[%clk 0:00:58.5]} 38... Be7 {[%clk
0:00:27.8]} 39. Rec2 {[%clk 0:00:55.7]} 39... Rbc8 {[%clk 0:00:27.6]} 40. Kf2
{[%clk 0:00:54.6]} 40... Bxa3 {[%clk 0:00:26.4]} 41. bxa3 {[%clk 0:00:49]} 41...
Nxa3 {[%clk 0:00:27.3]} 42. Rb2 {[%clk 0:00:42.5]} 42... Rxc3 {[%clk 0:00:27.6]}
43. Rb7+ {[%clk 0:00:42.2]} 43... Ke8 {[%clk 0:00:27.4]} 44. Nxg7+ {[%clk
0:00:40.9]} 44... Kf8 {[%clk 0:00:27.5]} 45. Ne6+ {[%clk 0:00:41.1]} 45... Kg8
{[%clk 0:00:28.2]} 46. Rcb1 {[%clk 0:00:33.6]} 46... Nxb1 {[%clk 0:00:25.4]} 47.
Rxb1 {[%clk 0:00:30.6]} 47... Rb3 {[%clk 0:00:25.6]} 48. Rf1 {[%clk 0:00:19.6]}
48... Rc2+ {[%clk 0:00:25.4]} 49. Kg1 {[%clk 0:00:20]} 49... Rg3+ {[%clk
0:00:25.5]} 50. Kh1 {[%clk 0:00:19.6]} 50... Rxh3+ {[%clk 0:00:26.4]} 51. Kg1
{[%clk 0:00:20.5]} 51... Rg3+ {[%clk 0:00:27.1]} 52. Kh1 {[%clk 0:00:21]} 52...
a3 {[%clk 0:00:28]} 53. g5 {[%clk 0:00:20.7]} 53... Rh3+ {[%clk 0:00:26.9]} 54.
Kg1 {[%clk 0:00:20.7]} 54... Rg3+ {[%clk 0:00:27.8]} 55. Kh1 {[%clk 0:00:21.6]}
55... Rxg5 {[%clk 0:00:28.7]} 56. Nxg5 {[%clk 0:00:21.5]} 56... fxg5 {[%clk
0:00:29.6]} 57. f6 {[%clk 0:00:19.3]} 57... a2 {[%clk 0:00:30.2]} 58. Rg1 {[%clk
0:00:16.1]} 58... Kf7 {[%clk 0:00:29.1]} 59. Rxg5 {[%clk 0:00:16.3]} 59... a1=Q+
{[%clk 0:00:28.3]} 0-1

[Event "*** Titled Tuesday Blitz"]
[Site "Chess.com"]
[Date "2020.11.03"]
[Round "6"]
[White "bazar-wokzal"]
[Black "grzechu96"]
[Result "0-1"]
[WhiteElo "2511"]
[BlackElo "2687"]
[TimeControl "180+1"]
[EndTime "11:10:51 PST"]
[Termination "grzechu96 won by checkmate"]

1. e4 {[%clk 0:03:00.9]} 1... c5 {[%clk 0:02:57.3]} 2. c3 {[%clk 0:03:00.9]}
2... Nf6 {[%clk 0:02:53.3]} 3. e5 {[%clk 0:03:01.1]} 3... Nd5 {[%clk 0:02:53.8]}
4. d4 {[%clk 0:03:02]} 4... cxd4 {[%clk 0:02:53.5]} 5. cxd4 {[%clk 0:03:02.9]}
5... Nc6 {[%clk 0:02:52.5]} 6. Nc3 {[%clk 0:03:02.8]} 6... Nxc3 {[%clk
0:02:46.4]} 7. bxc3 {[%clk 0:03:03.7]} 7... e6 {[%clk 0:02:44.4]} 8. Bd3 {[%clk
0:03:01]} 8... d6 {[%clk 0:02:44.4]} 9. f4 {[%clk 0:03:00.8]} 9... Qc7 {[%clk
0:02:18]} 10. Bd2 {[%clk 0:02:59.8]} 10... Bd7 {[%clk 0:02:07]} 11. Nf3 {[%clk
0:02:59.8]} 11... Na5 {[%clk 0:02:06.9]} 12. O-O {[%clk 0:02:59]} 12... g6
{[%clk 0:02:02.8]} 13. Ng5 {[%clk 0:02:54.7]} 13... d5 {[%clk 0:01:59.3]} 14. g4
{[%clk 0:02:48.8]} 14... Be7 {[%clk 0:01:46.4]} 15. Kh1 {[%clk 0:02:12.2]} 15...
Nc4 {[%clk 0:01:38.3]} 16. Bc1 {[%clk 0:02:03.5]} 16... h5 {[%clk 0:01:18.6]}
17. f5 {[%clk 0:02:01.1]} 17... gxf5 {[%clk 0:01:13.2]} 18. gxf5 {[%clk
0:02:01.1]} 18... Nb2 {[%clk 0:00:36.6]} 19. Nxe6 {[%clk 0:01:36]} 19... fxe6
{[%clk 0:00:32.1]} 20. Bxb2 {[%clk 0:01:34.5]} 20... exf5 {[%clk 0:00:32.4]} 21.
Qf3 {[%clk 0:01:25]} 21... O-O-O {[%clk 0:00:31]} 22. Bxf5 {[%clk 0:01:22.7]}
22... Kb8 {[%clk 0:00:29.1]} 23. Bxd7 {[%clk 0:01:10.4]} 23... Qxd7 {[%clk
0:00:29.5]} 24. a4 {[%clk 0:01:05.6]} 24... Qc6 {[%clk 0:00:25.4]} 25. Ba3
{[%clk 0:01:01.4]} 25... Rdf8 {[%clk 0:00:21.2]} 26. Qh3 {[%clk 0:00:53.2]}
26... Rxf1+ {[%clk 0:00:19.8]} 27. Qxf1 {[%clk 0:00:53.4]} 27... Rf8 {[%clk
0:00:18.2]} 28. Qh3 {[%clk 0:00:45.5]} 28... Bxa3 {[%clk 0:00:15.2]} 29. Rxa3
{[%clk 0:00:45.3]} 29... Qg6 {[%clk 0:00:15.4]} 30. Ra1 {[%clk 0:00:38.3]} 30...
Rf2 {[%clk 0:00:10.9]} 31. Re1 {[%clk 0:00:28.5]} 31... Qc2 {[%clk 0:00:04.1]}
32. e6 {[%clk 0:00:22.9]} 32... Qd2 {[%clk 0:00:04.5]} 33. Qg3+ {[%clk
0:00:21.6]} 33... Kc8 {[%clk 0:00:02.7]} 34. Qg8+ {[%clk 0:00:21.3]} 34... Kc7
{[%clk 0:00:02.9]} 35. Qg3+ {[%clk 0:00:20.4]} 35... Kc6 {[%clk 0:00:02.6]} 36.
Rg1 {[%clk 0:00:17.8]} 36... Qe2 {[%clk 0:00:02.9]} 37. h3 {[%clk 0:00:11.8]}
37... Qe4+ {[%clk 0:00:03.2]} 38. Rg2 {[%clk 0:00:11.1]} 38... Rf3 {[%clk
0:00:03.6]} 39. Qe5 {[%clk 0:00:04.4]} 39... Rxh3+ {[%clk 0:00:03.9]} 40. Kg1
{[%clk 0:00:04.8]} 40... Qb1+ {[%clk 0:00:04.1]} 41. Kf2 {[%clk 0:00:05.1]}
41... Qc2+ {[%clk 0:00:04.5]} 42. Kg1 {[%clk 0:00:05.3]} 42... Qd1+ {[%clk
0:00:05]} 43. Kf2 {[%clk 0:00:05.7]} 43... Rf3# {[%clk 0:00:05.7]} 0-1

[Event "*** Titled Tuesday Blitz"]
[Site "Chess.com"]
[Date "2020.11.03"]
[Round "6"]
[White "snowlord"]
[Black "AquivaRubinstein"]
[Result "0-1"]
[WhiteElo "2713"]
[BlackElo "2535"]
[TimeControl "180+1"]
[EndTime "11:10:52 PST"]
[Termination "AquivaRubinstein won by resignation"]

1. d4 {[%clk 0:02:42.3]} 1... Nf6 {[%clk 0:02:58.7]} 2. c4 {[%clk 0:02:41.9]}
2... c5 {[%clk 0:02:57.3]} 3. d5 {[%clk 0:02:41.5]} 3... e6 {[%clk 0:02:57.3]}
4. Nc3 {[%clk 0:02:41.2]} 4... exd5 {[%clk 0:02:57]} 5. cxd5 {[%clk 0:02:42.1]}
5... d6 {[%clk 0:02:57]} 6. Nf3 {[%clk 0:02:42.5]} 6... g6 {[%clk 0:02:57]} 7.
e4 {[%clk 0:02:43.1]} 7... Bg7 {[%clk 0:02:56.5]} 8. Be2 {[%clk 0:02:44]} 8...
O-O {[%clk 0:02:56.5]} 9. Be3 {[%clk 0:02:44.7]} 9... Ng4 {[%clk 0:02:42]} 10.
Bg5 {[%clk 0:02:44.4]} 10... Qb6 {[%clk 0:02:37.3]} 11. Qd2 {[%clk 0:02:42.4]}
11... h6 {[%clk 0:02:22.8]} 12. Bf4 {[%clk 0:02:41.8]} 12... g5 {[%clk 0:02:17]}
13. Bg3 {[%clk 0:02:41.8]} 13... Nd7 {[%clk 0:02:12.2]} 14. h4 {[%clk
0:02:41.8]} 14... gxh4 {[%clk 0:01:49.6]} 15. Nxh4 {[%clk 0:02:42.7]} 15... Nde5
{[%clk 0:01:41.6]} 16. Bf4 {[%clk 0:02:28.7]} 16... c4 {[%clk 0:01:08.4]} 17.
O-O {[%clk 0:02:23.9]} 17... Ng6 {[%clk 0:01:03.3]} 18. Bg3 {[%clk 0:02:21.8]}
18... Nxh4 {[%clk 0:00:59]} 19. Bxh4 {[%clk 0:02:22.7]} 19... f5 {[%clk
0:00:56.6]} 20. Bxc4 {[%clk 0:02:10.8]} 20... f4 {[%clk 0:00:52.4]} 21. Be2
{[%clk 0:02:10.9]} 21... Ne5 {[%clk 0:00:50.5]} 22. Kh1 {[%clk 0:02:06.1]} 22...
f3 {[%clk 0:00:47.3]} 23. gxf3 {[%clk 0:01:57.8]} 23... Nxf3 {[%clk 0:00:47.2]}
24. Bxf3 {[%clk 0:01:56.6]} 24... Rxf3 {[%clk 0:00:48.1]} 25. Bg3 {[%clk
0:01:54]} 25... Qd8 {[%clk 0:00:37]} 26. Kg2 {[%clk 0:01:52]} 26... Bg4 {[%clk
0:00:32.6]} 27. Nd1 {[%clk 0:01:50.5]} 27... Qf6 {[%clk 0:00:25.1]} 28. Ne3
{[%clk 0:01:47.8]} 28... h5 {[%clk 0:00:24.6]} 29. Nxg4 {[%clk 0:01:45.1]} 29...
hxg4 {[%clk 0:00:25.5]} 30. Rh1 {[%clk 0:01:45.3]} 30... Rf8 {[%clk 0:00:24.5]}
31. Raf1 {[%clk 0:01:43.7]} 31... Qg6 {[%clk 0:00:21.1]} 32. Qe2 {[%clk
0:01:37.1]} 32... Be5 {[%clk 0:00:20.8]} 33. Bxe5 {[%clk 0:01:35.6]} 33... dxe5
{[%clk 0:00:21.7]} 34. a4 {[%clk 0:00:47.9]} 34... g3 {[%clk 0:00:19.1]} 35.
Qxf3 {[%clk 0:00:31]} 35... Rxf3 {[%clk 0:00:18.1]} 36. Kxf3 {[%clk 0:00:31.9]}
36... g2 {[%clk 0:00:18.4]} 37. Rfg1 {[%clk 0:00:29.4]} 37... gxh1=Q+ {[%clk
0:00:17.6]} 38. Rxh1 {[%clk 0:00:30.3]} 38... Qf7+ {[%clk 0:00:17.3]} 39. Ke2
{[%clk 0:00:29.2]} 39... Qd7 {[%clk 0:00:17.4]} 40. Rg1+ {[%clk 0:00:24.1]}
40... Kf7 {[%clk 0:00:16.6]} 41. b3 {[%clk 0:00:25]} 41... Qc7 {[%clk 0:00:16]}
42. Kd2 {[%clk 0:00:21]} 42... Qc5 {[%clk 0:00:15.3]} 43. Re1 {[%clk 0:00:16.6]}
43... Qxf2+ {[%clk 0:00:13.6]} 44. Re2 {[%clk 0:00:16.7]} 44... Qd4+ {[%clk
0:00:13.6]} 45. Kc2 {[%clk 0:00:17.2]} 45... Ke7 {[%clk 0:00:13.9]} 46. Re1
{[%clk 0:00:16.2]} 46... Kd6 {[%clk 0:00:13.8]} 47. Re2 {[%clk 0:00:16.5]} 47...
a6 {[%clk 0:00:13.5]} 48. Re1 {[%clk 0:00:14.8]} 48... b5 {[%clk 0:00:13.5]} 49.
axb5 {[%clk 0:00:15.4]} 49... axb5 {[%clk 0:00:13.5]} 50. Re2 {[%clk 0:00:16.3]}
50... b4 {[%clk 0:00:13.7]} 51. Kc1 {[%clk 0:00:14.1]} 51... Qc3+ {[%clk
0:00:13.2]} 52. Rc2 {[%clk 0:00:12]} 52... Qxb3 {[%clk 0:00:13.3]} 53. Rc6+
{[%clk 0:00:12.6]} 53... Kd7 {[%clk 0:00:13.4]} 54. Re6 {[%clk 0:00:13.5]} 54...
Qe3+ {[%clk 0:00:12.4]} 55. Kb1 {[%clk 0:00:14.4]} 0-1